[Event "GrandPrix_30.05"]
[Site "Chess.com"]
[Date "2020.05.30"]
[Round "5"]
[White "OhanyanEminChess"]
[Black "chessdjw"]
[Result "1/2-1/2"]
[WhiteElo "2082"]
[BlackElo "2152"]
[TimeControl "600+2"]
[EndTime "10:28:28 PDT"]
[Termination "Game drawn by agreement"]

1. e4 {[%clk 0:10:01.9]} 1... e5 {[%clk 0:09:53.3]} 2. Nf3 {[%clk 0:09:49]} 2...
Nc6 {[%clk 0:09:54.1]} 3. Bc4 {[%clk 0:09:49]} 3... Bc5 {[%clk 0:09:53.7]} 4.
O-O {[%clk 0:09:44]} 4... Nf6 {[%clk 0:09:52.1]} 5. d3 {[%clk 0:09:44.5]} 5...
d6 {[%clk 0:09:52.4]} 6. h3 {[%clk 0:09:44.1]} 6... a6 {[%clk 0:09:51.3]} 7. c3
{[%clk 0:09:45.2]} 7... Ba7 {[%clk 0:09:52.4]} 8. Be3 {[%clk 0:09:38.1]} 8...
Bxe3 {[%clk 0:09:52.1]} 9. fxe3 {[%clk 0:09:39.2]} 9... O-O {[%clk 0:09:45.1]}
10. Nbd2 {[%clk 0:09:39.1]} 10... Ne7 {[%clk 0:09:44.8]} 11. Qe1 {[%clk
0:09:35.4]} 11... Ng6 {[%clk 0:09:44]} 12. Qg3 {[%clk 0:09:30.9]} 12... c6
{[%clk 0:09:40.7]} 13. Bb3 {[%clk 0:09:30.4]} 13... a5 {[%clk 0:09:17.9]} 14.
Rf2 {[%clk 0:09:28.5]} 14... a4 {[%clk 0:09:13.1]} 15. Bc2 {[%clk 0:09:29.2]}
15... Qe7 {[%clk 0:09:10.5]} 16. Raf1 {[%clk 0:09:27.6]} 16... Nh5 {[%clk
0:08:43.1]} 17. Qg5 {[%clk 0:08:55.3]} 17... Qxg5 {[%clk 0:08:42.2]} 18. Nxg5
{[%clk 0:08:57.2]} 18... Ng3 {[%clk 0:08:36.4]} 19. Re1 {[%clk 0:08:46.2]} 19...
h6 {[%clk 0:08:35.9]} 20. Ngf3 {[%clk 0:08:46.6]} 20... Be6 {[%clk 0:08:33.6]}
21. a3 {[%clk 0:08:43.9]} 21... f5 {[%clk 0:07:56]} 22. d4 {[%clk 0:07:59.2]}
22... f4 {[%clk 0:07:38.9]} 23. exf4 {[%clk 0:07:27.5]} 23... Nxf4 {[%clk
0:06:36.8]} 24. dxe5 {[%clk 0:07:04.1]} 24... dxe5 {[%clk 0:06:37]} 25. Nxe5
{[%clk 0:06:59.9]} 25... g5 {[%clk 0:06:22.9]} 26. Nf1 {[%clk 0:06:39]} 26...
Nxf1 {[%clk 0:06:11.8]} 27. Rexf1 {[%clk 0:06:30.2]} 27... Rfd8 {[%clk
0:06:03.2]} 28. Nf3 {[%clk 0:05:28.3]} 28... c5 {[%clk 0:05:45.4]} 29. Kh2
{[%clk 0:04:38.7]} 29... Bc4 {[%clk 0:05:38.3]} 30. Re1 {[%clk 0:04:21.4]} 30...
Bd3 {[%clk 0:05:37.8]} 31. Ne5 {[%clk 0:03:44.2]} 31... Bxc2 {[%clk 0:05:32.1]}
32. Rxc2 {[%clk 0:03:46.1]} 32... Re8 {[%clk 0:05:25.5]} 33. Nd7 {[%clk
0:03:26.1]} 33... Re7 {[%clk 0:05:16.8]} 34. Nxc5 {[%clk 0:02:36.8]} 34... b6
{[%clk 0:05:08]} 35. g3 {[%clk 0:02:37.8]} 35... bxc5 {[%clk 0:05:03.5]} 36.
gxf4 {[%clk 0:02:38.3]} 36... gxf4 {[%clk 0:05:05.2]} 37. Kg2 {[%clk 0:01:52.8]}
37... Rd8 {[%clk 0:05:04.3]} 38. Kf3 {[%clk 0:01:45.9]} 38... Rd3+ {[%clk
0:04:31.5]} 39. Kxf4 {[%clk 0:01:45.9]} 39... Rxh3 {[%clk 0:04:33.2]} 40. e5
{[%clk 0:01:39.4]} 40... Kf7 {[%clk 0:04:33.9]} 41. Rd2 {[%clk 0:00:57.7]} 41...
Rh4+ {[%clk 0:04:26.6]} 42. Kf5 {[%clk 0:00:54.8]} 42... Rh5+ {[%clk 0:04:25.6]}
43. Kf4 {[%clk 0:00:56.4]} 43... Rb7 {[%clk 0:04:11]} 44. Rd6 {[%clk 0:00:31.6]}
44... Rxb2 {[%clk 0:03:49.2]} 45. Ke4 {[%clk 0:00:30.2]} 45... Ke7 {[%clk
0:03:36.8]} 46. Kd5 {[%clk 0:00:28.3]} 46... Rd2+ {[%clk 0:03:37.4]} 47. Kc6
{[%clk 0:00:29.3]} 47... Rc2 {[%clk 0:03:31.3]} 48. e6 {[%clk 0:00:28.1]} 48...
Rhh2 {[%clk 0:02:51.6]} 49. Rd7+ {[%clk 0:00:28]} 49... Ke8 {[%clk 0:02:53]} 50.
e7 {[%clk 0:00:18.7]} 50... Rhe2 {[%clk 0:02:53]} 51. Rh1 {[%clk 0:00:03.5]}
51... Re6+ {[%clk 0:02:50.5]} 52. Rd6 {[%clk 0:00:04.1]} 52... Rxe7 {[%clk
0:02:05.1]} 53. Kxc5 {[%clk 0:00:04.6]} 53... Rxc3+ {[%clk 0:02:03.2]} 54. Kb4
{[%clk 0:00:06]} 54... Rb3+ {[%clk 0:01:57.5]} 55. Kxa4 {[%clk 0:00:06.8]} 55...
Rb2 {[%clk 0:01:49.8]} 56. Rhxh6 {[%clk 0:00:07.1]} 56... Ra7+ {[%clk
0:01:16.7]} 57. Ra6 {[%clk 0:00:07.9]} 57... Rxa6+ {[%clk 0:01:18.1]} 58. Rxa6
{[%clk 0:00:09.8]} 58... Kd7 {[%clk 0:01:19.3]} 59. Ka5 {[%clk 0:00:09]} 59...
Kc7 {[%clk 0:01:18.5]} 60. Rh6 {[%clk 0:00:09.8]} 60... Kb7 {[%clk 0:01:18.5]}
61. a4 {[%clk 0:00:11.3]} 61... Ka7 {[%clk 0:01:19.2]} 62. Rh7+ {[%clk
0:00:10.5]} 62... Rb7 {[%clk 0:01:20.8]} 63. Rh4 {[%clk 0:00:11.1]} 63... Rg7
{[%clk 0:01:21.2]} 64. Rh5 {[%clk 0:00:12]} 64... Rf7 {[%clk 0:01:21.5]} 65. Rg5
{[%clk 0:00:12.8]} 65... Rh7 {[%clk 0:01:22.6]} 66. Rf5 {[%clk 0:00:13.6]} 66...
Rg7 {[%clk 0:01:23.9]} 67. Rh5 {[%clk 0:00:14.3]} 67... Rf7 {[%clk 0:01:25.1]}
68. Rc5 {[%clk 0:00:15.2]} 68... Rh7 {[%clk 0:01:26.1]} 69. Rc4 {[%clk
0:00:14.7]} 69... Rh5+ {[%clk 0:01:26.9]} 70. Kb4 {[%clk 0:00:16.2]} 70... Rh6
{[%clk 0:01:27.7]} 71. Rg4 {[%clk 0:00:17.3]} 71... Ka6 {[%clk 0:01:28.9]} 72.
a5 {[%clk 0:00:17.5]} 72... Rd6 {[%clk 0:01:30]} 73. Rg8 {[%clk 0:00:16.4]}
73... Rd4+ {[%clk 0:01:28.9]} 74. Kc5 {[%clk 0:00:17.7]} 74... Rd1 {[%clk
0:01:21.6]} 75. Ra8+ {[%clk 0:00:13.7]} 75... Kb7 {[%clk 0:01:22.5]} 76. Rh8
{[%clk 0:00:15.6]} 76... Ka6 {[%clk 0:01:23.7]} 77. Ra8+ {[%clk 0:00:09.9]}
1/2-1/2

[Event "GrandPrix_30.05"]
[Site "Chess.com"]
[Date "2020.05.30"]
[Round "5"]
[White "Nitzan_Steinberg"]
[Black "MaxVavulin"]
[Result "1/2-1/2"]
[WhiteElo "2436"]
[BlackElo "2256"]
[TimeControl "600+2"]
[EndTime "10:28:35 PDT"]
[Termination "Game drawn by repetition"]

1. e4 {[%clk 0:10:01.9]} 1... e5 {[%clk 0:09:59.6]} 2. Nf3 {[%clk 0:10:02.7]}
2... Nc6 {[%clk 0:09:59.4]} 3. Bb5 {[%clk 0:10:04]} 3... a6 {[%clk 0:10:00.2]}
4. Ba4 {[%clk 0:10:05.1]} 4... Nf6 {[%clk 0:09:58.3]} 5. O-O {[%clk 0:10:06.3]}
5... Be7 {[%clk 0:09:59.1]} 6. Re1 {[%clk 0:10:07]} 6... b5 {[%clk 0:09:57.2]}
7. Bb3 {[%clk 0:10:07.9]} 7... O-O {[%clk 0:09:58.8]} 8. a4 {[%clk 0:10:08.1]}
8... b4 {[%clk 0:09:53.2]} 9. a5 {[%clk 0:10:09.1]} 9... d6 {[%clk 0:09:46.3]}
10. c3 {[%clk 0:10:09.6]} 10... Rb8 {[%clk 0:08:55.3]} 11. Bc4 {[%clk 0:10:10]}
11... Bb7 {[%clk 0:08:46.7]} 12. d4 {[%clk 0:09:07.5]} 12... bxc3 {[%clk
0:08:02.1]} 13. Nxc3 {[%clk 0:09:06.7]} 13... exd4 {[%clk 0:06:53.8]} 14. Nxd4
{[%clk 0:09:05.6]} 14... Nxd4 {[%clk 0:06:48.2]} 15. Qxd4 {[%clk 0:09:05.2]}
15... Nxe4 {[%clk 0:06:35.9]} 16. Nxe4 {[%clk 0:05:17.5]} 16... d5 {[%clk
0:06:35.8]} 17. Bh6 {[%clk 0:04:34.1]} 17... gxh6 {[%clk 0:05:58.2]} 18. Re3
{[%clk 0:04:34.2]} 18... dxc4 {[%clk 0:03:31.6]} 19. Rg3+ {[%clk 0:04:33.6]}
19... Bg5 {[%clk 0:03:32.5]} 20. Nf6+ {[%clk 0:04:18.3]} 20... Kh8 {[%clk
0:03:33]} 21. Nd7+ {[%clk 0:04:15.1]} 21... f6 {[%clk 0:03:33.8]} 22. Rd1 {[%clk
0:04:04.1]} 22... Re8 {[%clk 0:01:57.7]} 23. h4 {[%clk 0:03:55]} 23... Re4
{[%clk 0:01:58.4]} 24. Qa7 {[%clk 0:03:23.4]} 24... Bxh4 {[%clk 0:01:50.9]} 25.
Rh3 {[%clk 0:03:24.6]} 25... Rg4 {[%clk 0:00:57.9]} 26. Qxb8 {[%clk 0:03:04.4]}
26... Rxg2+ {[%clk 0:00:54.1]} 27. Kh1 {[%clk 0:02:53.4]} 27... Qxb8 {[%clk
0:00:33.8]} 28. Nxb8 {[%clk 0:02:53.7]} 28... Rxf2+ {[%clk 0:00:31.9]} 29. Kg1
{[%clk 0:02:54.2]} 29... Rg2+ {[%clk 0:00:33.5]} 30. Kf1 {[%clk 0:02:51.2]}
30... Bg5 {[%clk 0:00:27.4]} 31. b3 {[%clk 0:01:44.7]} 31... Rb2 {[%clk
0:00:27.8]} 32. Rc3 {[%clk 0:01:45.2]} 32... Rxb3 {[%clk 0:00:16.5]} 33. Rxc4
{[%clk 0:01:45.8]} 33... Kg7 {[%clk 0:00:14.6]} 34. Rxc7+ {[%clk 0:01:41.1]}
34... Kg6 {[%clk 0:00:16.1]} 35. Nd7 {[%clk 0:01:31.3]} 35... Rb2 {[%clk
0:00:15.3]} 36. Rd4 {[%clk 0:01:21.3]} 36... Bg2+ {[%clk 0:00:15.4]} 37. Ke1
{[%clk 0:01:22.3]} 37... Ra2 {[%clk 0:00:12.4]} 38. Nf8+ {[%clk 0:01:18]} 38...
Kh5 {[%clk 0:00:13.3]} 39. Rc5 {[%clk 0:01:02.7]} 39... Bf3 {[%clk 0:00:09.6]}
40. Nxh7 {[%clk 0:00:51.1]} 40... Kg6 {[%clk 0:00:09.9]} 41. Nxg5 {[%clk
0:00:37.6]} 41... hxg5 {[%clk 0:00:10.8]} 42. Rd6 {[%clk 0:00:38.8]} 42... Re2+
{[%clk 0:00:09.2]} 43. Kf1 {[%clk 0:00:39.2]} 43... g4 {[%clk 0:00:06.5]} 44.
Rcc6 {[%clk 0:00:14.6]} 44... Bxc6 {[%clk 0:00:07.4]} 45. Kxe2 {[%clk
0:00:15.2]} 45... Bb5+ {[%clk 0:00:09]} 46. Kf2 {[%clk 0:00:13.8]} 46... Kg5
{[%clk 0:00:08.5]} 47. Kg3 {[%clk 0:00:14.5]} 47... f5 {[%clk 0:00:09.3]} 48.
Rd5 {[%clk 0:00:13.6]} 48... Bc6 {[%clk 0:00:09.4]} 49. Rc5 {[%clk 0:00:12.3]}
49... Be4 {[%clk 0:00:10.5]} 50. Re5 {[%clk 0:00:10.4]} 50... Bf3 {[%clk
0:00:11.1]} 51. Rc5 {[%clk 0:00:10.5]} 51... Be4 {[%clk 0:00:12.1]} 52. Re5
{[%clk 0:00:11.5]} 52... Bd3 {[%clk 0:00:13.3]} 53. Rd5 {[%clk 0:00:10.8]} 53...
Bc4 {[%clk 0:00:12.9]} 54. Rc5 {[%clk 0:00:10.1]} 54... Bd3 {[%clk 0:00:12.4]}
55. Rd5 {[%clk 0:00:10.3]} 55... Be4 {[%clk 0:00:12.6]} 56. Rc5 {[%clk
0:00:09.2]} 56... Bf3 {[%clk 0:00:08.5]} 57. Re5 {[%clk 0:00:08.6]} 57... Bc6
{[%clk 0:00:05.9]} 58. Rc5 {[%clk 0:00:07.9]} 58... Bb7 {[%clk 0:00:06.1]} 59.
Re5 {[%clk 0:00:08.5]} 59... Be4 {[%clk 0:00:04.5]} 60. Rc5 {[%clk 0:00:09.1]}
60... Bf3 {[%clk 0:00:04.5]} 61. Re5 {[%clk 0:00:09.6]} 61... Be4 {[%clk
0:00:05.8]} 62. Rc5 {[%clk 0:00:10.5]} 1/2-1/2

[Event "GrandPrix_30.05"]
[Site "Chess.com"]
[Date "2020.05.30"]
[Round "5"]
[White "grzechu96"]
[Black "dzhumagaliev"]
[Result "0-1"]
[WhiteElo "2379"]
[BlackElo "2253"]
[TimeControl "600+2"]
[EndTime "10:28:42 PDT"]
[Termination "dzhumagaliev won by resignation"]

1. e4 {[%clk 0:10:01.9]} 1... c5 {[%clk 0:10:00]} 2. Nf3 {[%clk 0:10:02.6]} 2...
Nc6 {[%clk 0:10:01.4]} 3. Bb5 {[%clk 0:10:03.3]} 3... e6 {[%clk 0:10:02.6]} 4.
O-O {[%clk 0:10:03.9]} 4... Nge7 {[%clk 0:10:03.2]} 5. Re1 {[%clk 0:10:03.1]}
5... a6 {[%clk 0:10:04.1]} 6. Bf1 {[%clk 0:10:03.9]} 6... e5 {[%clk 0:10:03.5]}
7. c3 {[%clk 0:10:02.1]} 7... d6 {[%clk 0:10:04.6]} 8. d4 {[%clk 0:10:02.8]}
8... cxd4 {[%clk 0:10:06.5]} 9. cxd4 {[%clk 0:10:04]} 9... Bg4 {[%clk
0:10:07.9]} 10. d5 {[%clk 0:09:51]} 10... Nd4 {[%clk 0:10:07.3]} 11. Be3 {[%clk
0:09:52.5]} 11... Bxf3 {[%clk 0:10:01.4]} 12. gxf3 {[%clk 0:09:54.4]} 12... Ng6
{[%clk 0:10:02.1]} 13. f4 {[%clk 0:09:07.1]} 13... Qh4 {[%clk 0:09:45.6]} 14.
Bxd4 {[%clk 0:08:15.9]} 14... exd4 {[%clk 0:09:45.1]} 15. Qa4+ {[%clk
0:06:20.7]} 15... b5 {[%clk 0:09:44.3]} 16. Bxb5+ {[%clk 0:06:20.5]} 16... Ke7
{[%clk 0:09:45.3]} 17. Bf1 {[%clk 0:06:18.1]} 17... Qg4+ {[%clk 0:08:52.1]} 18.
Kh1 {[%clk 0:06:17.8]} 18... Qxf4 {[%clk 0:08:51.6]} 19. Qxd4 {[%clk 0:05:48.3]}
19... Ne5 {[%clk 0:08:36.5]} 20. Qe3 {[%clk 0:04:48.2]} 20... g5 {[%clk
0:08:09.5]} 21. Nd2 {[%clk 0:04:35.1]} 21... Bg7 {[%clk 0:08:02.1]} 22. Qxf4
{[%clk 0:03:54.2]} 22... gxf4 {[%clk 0:08:02.5]} 23. Be2 {[%clk 0:03:53.6]}
23... Rhb8 {[%clk 0:07:45.6]} 24. Rab1 {[%clk 0:03:46.2]} 24... Rb4 {[%clk
0:07:44.2]} 25. Rec1 {[%clk 0:02:55.6]} 25... f3 {[%clk 0:07:00.5]} 26. Nxf3
{[%clk 0:02:48.6]} 26... Rxe4 {[%clk 0:07:00.1]} 27. Rc2 {[%clk 0:02:04.3]}
27... Nxf3 {[%clk 0:06:11.5]} 28. Bxf3 {[%clk 0:02:04.7]} 28... Rh4 {[%clk
0:06:13.4]} 29. Bg2 {[%clk 0:01:56]} 29... Be5 {[%clk 0:06:12.5]} 30. h3 {[%clk
0:01:57.3]} 30... a5 {[%clk 0:06:09.8]} 31. b3 {[%clk 0:01:56.3]} 31... Rb4
{[%clk 0:05:57.1]} 32. Bf1 {[%clk 0:01:49.1]} 32... Rd4 {[%clk 0:05:53.8]} 33.
Re1 {[%clk 0:01:05.7]} 33... Kf6 {[%clk 0:05:48.1]} 34. Be2 {[%clk 0:00:43.3]}
34... Rf4 {[%clk 0:05:32.5]} 35. Bc4 {[%clk 0:00:29.3]} 35... Rh4 {[%clk
0:05:11.2]} 36. Re3 {[%clk 0:00:29.1]} 36... Rg8 {[%clk 0:05:10.8]} 37. Rf3+
{[%clk 0:00:25.4]} 37... Ke7 {[%clk 0:05:10.6]} 38. Bf1 {[%clk 0:00:26.3]} 38...
f6 {[%clk 0:04:04.3]} 39. Rc7+ {[%clk 0:00:27.2]} 39... Kd8 {[%clk 0:04:04.8]}
40. Rc4 {[%clk 0:00:28.7]} 40... Rh5 {[%clk 0:03:52.3]} 41. Bd3 {[%clk
0:00:16.5]} 41... Rhg5 {[%clk 0:03:37.2]} 42. Rg4 {[%clk 0:00:14.8]} 42... Rxg4
{[%clk 0:03:11.4]} 43. hxg4 {[%clk 0:00:16.7]} 43... Rxg4 {[%clk 0:03:12.7]} 44.
Rh3 {[%clk 0:00:18.4]} 44... Rd4 {[%clk 0:03:07.6]} 45. Kg2 {[%clk 0:00:18.4]}
45... Rxd5 {[%clk 0:03:04.9]} 46. Kf1 {[%clk 0:00:19.8]} 46... h6 {[%clk
0:02:56.2]} 47. Ke2 {[%clk 0:00:14.4]} 47... Bf4 {[%clk 0:02:48.3]} 48. Rh4
{[%clk 0:00:14.8]} 48... Bg5 {[%clk 0:02:44.7]} 49. Rc4 {[%clk 0:00:14.8]} 49...
f5 {[%clk 0:02:37.6]} 50. Rc6 {[%clk 0:00:11.7]} 50... h5 {[%clk 0:02:27]} 51.
Ra6 {[%clk 0:00:11.2]} 51... h4 {[%clk 0:02:23.8]} 52. Ra8+ {[%clk 0:00:12]}
52... Ke7 {[%clk 0:02:24.9]} 53. Rg8 {[%clk 0:00:11.1]} 53... Bf6 {[%clk
0:02:21.2]} 54. Rg6 {[%clk 0:00:07.5]} 54... Kf7 {[%clk 0:01:37.8]} 55. Bc4
{[%clk 0:00:08.7]} 55... Kxg6 {[%clk 0:01:38.8]} 56. Bxd5 {[%clk 0:00:10.6]}
56... Kg5 {[%clk 0:01:39]} 57. Kf3 {[%clk 0:00:10.5]} 57... Bd4 {[%clk
0:01:37.9]} 58. a3 {[%clk 0:00:10.2]} 58... Bc5 {[%clk 0:01:38.4]} 59. b4 {[%clk
0:00:10.6]} 59... axb4 {[%clk 0:01:39.6]} 60. axb4 {[%clk 0:00:12.5]} 60... Bxb4
{[%clk 0:01:40.7]} 61. Bc6 {[%clk 0:00:12.4]} 61... Bc3 {[%clk 0:01:39.8]} 62.
Bd5 {[%clk 0:00:13.6]} 62... Be5 {[%clk 0:01:40.3]} 63. Bc6 {[%clk 0:00:14.7]}
63... h3 {[%clk 0:01:39.1]} 64. Bd5 {[%clk 0:00:14.5]} 64... h2 {[%clk
0:01:24.7]} 65. Kg2 {[%clk 0:00:15.3]} 65... Kf6 {[%clk 0:01:22.4]} 66. Kh1
{[%clk 0:00:14.7]} 66... Bf4 {[%clk 0:01:22.7]} 67. Kg2 {[%clk 0:00:09.9]} 67...
Ke5 {[%clk 0:01:23.7]} 68. Bc6 {[%clk 0:00:09.2]} 68... d5 {[%clk 0:01:24.9]}
69. f3 {[%clk 0:00:08.1]} 69... d4 {[%clk 0:01:23]} 70. Bb5 {[%clk 0:00:09.1]}
70... Bg3 {[%clk 0:01:19.1]} 71. Bd3 {[%clk 0:00:09.9]} 71... f4 {[%clk
0:01:18.3]} 72. Kh1 {[%clk 0:00:09.9]} 72... Kd5 {[%clk 0:01:18.9]} 73. Kg2
{[%clk 0:00:10.5]} 73... Kc5 {[%clk 0:01:20.1]} 74. Kh1 {[%clk 0:00:10.3]} 74...
Kb4 {[%clk 0:01:21.3]} 75. Kg2 {[%clk 0:00:11.9]} 75... Kc3 {[%clk 0:01:21.8]}
76. Be4 {[%clk 0:00:10.1]} 76... d3 {[%clk 0:01:22.7]} 77. Bxd3 {[%clk
0:00:11.6]} 77... Kxd3 {[%clk 0:01:24.2]} 78. Kh1 {[%clk 0:00:13]} 78... Ke2
{[%clk 0:01:24.7]} 79. Kg2 {[%clk 0:00:14.3]} 79... Bh4 {[%clk 0:01:25.5]} 80.
Kh1 {[%clk 0:00:14]} 80... Kxf3 {[%clk 0:01:25.5]} 0-1

[Event "GrandPrix_30.05"]
[Site "Chess.com"]
[Date "2020.05.30"]
[Round "5"]
[White "Rikikits"]
[Black "KuzubovYuriy"]
[Result "0-1"]
[WhiteElo "2581"]
[BlackElo "2490"]
[TimeControl "600+2"]
[EndTime "10:28:58 PDT"]
[Termination "KuzubovYuriy won on time"]

1. g3 {[%clk 0:10:01.9]} 1... d5 {[%clk 0:10:00.5]} 2. Bg2 {[%clk 0:10:03]} 2...
c5 {[%clk 0:09:44.1]} 3. d3 {[%clk 0:10:01.4]} 3... Nc6 {[%clk 0:09:39.7]} 4. f4
{[%clk 0:10:00.9]} 4... Nf6 {[%clk 0:08:32.8]} 5. Nf3 {[%clk 0:10:00.3]} 5...
Bg4 {[%clk 0:08:31.6]} 6. Nbd2 {[%clk 0:09:49.8]} 6... e6 {[%clk 0:08:27.4]} 7.
O-O {[%clk 0:09:37.4]} 7... Be7 {[%clk 0:06:08.9]} 8. e4 {[%clk 0:09:15.2]} 8...
h6 {[%clk 0:05:45.6]} 9. h3 {[%clk 0:08:49]} 9... Bxf3 {[%clk 0:05:44.1]} 10.
Qxf3 {[%clk 0:08:32.7]} 10... Qc7 {[%clk 0:05:33.6]} 11. exd5 {[%clk 0:06:41.5]}
11... Nd4 {[%clk 0:05:12.9]} 12. Qd1 {[%clk 0:06:19.2]} 12... Nxd5 {[%clk
0:05:10.1]} 13. Nc4 {[%clk 0:06:02.3]} 13... Rd8 {[%clk 0:05:06]} 14. c3 {[%clk
0:05:16.6]} 14... Nf5 {[%clk 0:05:05.6]} 15. Qf3 {[%clk 0:05:15.5]} 15... b5
{[%clk 0:04:36.8]} 16. Ne5 {[%clk 0:05:14.5]} 16... Bd6 {[%clk 0:04:29.1]} 17.
Re1 {[%clk 0:04:58.4]} 17... O-O {[%clk 0:04:24.4]} 18. Bd2 {[%clk 0:04:34.6]}
18... b4 {[%clk 0:04:14.5]} 19. Re2 {[%clk 0:04:10.4]} 19... bxc3 {[%clk
0:03:59.1]} 20. bxc3 {[%clk 0:04:12.3]} 20... Rb8 {[%clk 0:03:57.8]} 21. Be1
{[%clk 0:04:12.2]} 21... Bxe5 {[%clk 0:03:12.3]} 22. fxe5 {[%clk 0:04:09]} 22...
c4 {[%clk 0:03:09.9]} 23. d4 {[%clk 0:04:08.5]} 23... Rb6 {[%clk 0:02:46.7]} 24.
g4 {[%clk 0:03:55.1]} 24... Nfe7 {[%clk 0:02:42]} 25. Bg3 {[%clk 0:03:41.1]}
25... Rfb8 {[%clk 0:02:35.2]} 26. Rf1 {[%clk 0:03:40]} 26... Ng6 {[%clk
0:02:35.3]} 27. h4 {[%clk 0:03:34.3]} 27... Rb1 {[%clk 0:02:31.9]} 28. Rf2
{[%clk 0:03:30.4]} 28... Rxf1+ {[%clk 0:02:31.7]} 29. Rxf1 {[%clk 0:03:32.3]}
29... Rb2 {[%clk 0:02:25.6]} 30. h5 {[%clk 0:03:21.5]} 30... Nf8 {[%clk
0:02:22.5]} 31. Bh4 {[%clk 0:02:14.6]} 31... Rc2 {[%clk 0:02:07]} 32. Be1 {[%clk
0:02:10]} 32... Nh7 {[%clk 0:02:01.7]} 33. Qe4 {[%clk 0:01:41.2]} 33... Rxa2
{[%clk 0:01:47.9]} 34. Qb1 {[%clk 0:01:41.4]} 34... Rxg2+ {[%clk 0:01:45]} 35.
Kxg2 {[%clk 0:01:43.3]} 35... Ne3+ {[%clk 0:01:46.2]} 36. Kg1 {[%clk 0:01:44.9]}
36... Nxf1 {[%clk 0:01:43.6]} 37. Kxf1 {[%clk 0:01:46.8]} 37... Qb6 {[%clk
0:01:35.9]} 38. Qxb6 {[%clk 0:01:36.3]} 38... axb6 {[%clk 0:01:36.8]} 39. Bd2
{[%clk 0:01:35.2]} 39... Ng5 {[%clk 0:01:23.4]} 40. Ke2 {[%clk 0:01:06.6]} 40...
Ne4 {[%clk 0:01:22.9]} 41. Be1 {[%clk 0:01:06.5]} 41... f5 {[%clk 0:01:23.3]}
42. gxf5 {[%clk 0:01:06]} 42... exf5 {[%clk 0:01:23.2]} 43. Ke3 {[%clk
0:00:59.6]} 43... Kf7 {[%clk 0:01:06.4]} 44. d5 {[%clk 0:01:00.6]} 44... b5
{[%clk 0:00:57.3]} 45. Kd4 {[%clk 0:00:58.1]} 45... Ke7 {[%clk 0:00:55]} 46.
Bh4+ {[%clk 0:00:57.4]} 46... Kd7 {[%clk 0:00:55.6]} 47. Be1 {[%clk 0:00:41.6]}
47... Kc7 {[%clk 0:00:46.2]} 48. Bh4 {[%clk 0:00:40.4]} 48... Kd7 {[%clk
0:00:38.2]} 49. Be1 {[%clk 0:00:40.5]} 49... Ng5 {[%clk 0:00:26.9]} 50. e6+
{[%clk 0:00:36]} 50... Ke7 {[%clk 0:00:23.9]} 51. Bh4 {[%clk 0:00:34.1]} 51...
Kd6 {[%clk 0:00:24.4]} 52. Bg3+ {[%clk 0:00:24.2]} 52... Ke7 {[%clk 0:00:25.5]}
53. Bh4 {[%clk 0:00:18.8]} 53... Ke8 {[%clk 0:00:18.8]} 54. Kc5 {[%clk 0:00:06]}
54... f4 {[%clk 0:00:16.2]} 55. Bxg5 {[%clk 0:00:05.8]} 55... hxg5 {[%clk
0:00:16.4]} 56. Kc6 {[%clk 0:00:07.2]} 56... f3 {[%clk 0:00:16.4]} 57. d6 {[%clk
0:00:08]} 57... f2 {[%clk 0:00:17.7]} 58. d7+ {[%clk 0:00:08.8]} 58... Ke7
{[%clk 0:00:18.9]} 59. Kc7 {[%clk 0:00:10.6]} 59... f1=Q {[%clk 0:00:19.7]} 60.
d8=Q+ {[%clk 0:00:12.5]} 60... Kxe6 {[%clk 0:00:19.6]} 61. Qe8+ {[%clk
0:00:13.6]} 61... Kd5 {[%clk 0:00:19.2]} 62. Qxb5+ {[%clk 0:00:07]} 62... Ke4
{[%clk 0:00:19.5]} 63. Qxg5 {[%clk 0:00:08.2]} 63... Qf7+ {[%clk 0:00:18.1]} 64.
Kd6 {[%clk 0:00:07.2]} 64... Kd3 {[%clk 0:00:16.9]} 65. Qg6+ {[%clk 0:00:07.3]}
65... Qxg6+ {[%clk 0:00:17.5]} 66. hxg6 {[%clk 0:00:09.2]} 66... Kxc3 {[%clk
0:00:19]} 67. Ke7 {[%clk 0:00:11.1]} 67... Kd4 {[%clk 0:00:19.6]} 68. Kf7 {[%clk
0:00:13]} 68... c3 {[%clk 0:00:21.1]} 69. Kxg7 {[%clk 0:00:14.9]} 69... c2
{[%clk 0:00:22.5]} 0-1